{"text_format":"1","workbook":"xlsx","n_sheets":1,"sheets":["Sheet1"],"not_rendered":{"charts":0,"images":0,"macros":1,"external_links":0,"defined_names":1,"comments":0,"pivot_tables":0},"unopened":[],"bounds":{"document_bytes":16777216,"sheet_cells":100000,"rows_first":2000,"rows_last":500,"rows_between":2000,"halvings":0,"cell_chars":16384,"cell_head_chars":4096},"cells_cut":0,"cells_raw":0,"read":"whole","date_system":"1900"}

{"sheet":"Sheet1","index":0,"n_rows":34,"n_cols":21,"rows_kept":34,"cut":false,"hidden":false,"merged":[[33,0,33,5],[30,1,30,5],[25,1,25,5],[21,1,21,5],[22,1,22,5],[32,1,32,5],[31,1,31,5],[23,1,23,5],[24,1,24,5],[29,1,29,5],[2,8,8,13],[11,13,12,15],[6,14,7,15],[0,0,8,7],[0,15,1,15],[0,8,0,13],[11,7,12,11],[9,0,10,5],[9,7,10,15],[0,14,1,14],[3,14,4,14],[11,18,12,20],[13,18,18,18],[13,19,18,19],[13,20,18,20],[28,1,28,5],[26,1,26,5],[27,1,27,5],[19,1,19,5],[20,1,20,5],[11,16,12,17],[18,1,18,5],[15,1,15,5],[13,11,13,12],[14,11,14,12],[15,11,15,12],[16,12,17,12]]}
["INSTRUCTIONS:  Use this form when a single information collection document involves multiple reporting and recordkeeping requirements.  The totals of the figures in cols. should be entered in item 13 of OMB-83-I:                  cols. (D) &/or (I) = 13a (respondent is only counted once); cols. F & I = 13b;         cols. H & K = 13c.                                                                                                                                                                                                                                                                                                       (F)Total/(D)Total = (E)Average     (H)Total/(F)Total = (G)Average     (K)Total/(I)Total = (J)Average\nNOTE:  The columns will calculate automatically.  If Col. E's response is something other than annually, i.e., 1/6 years, list as \"1/6\" & decimal will display.    \n",null,null,null,null,null,null,null,"TITLE OF INFORMATION COLLECTION DOCUMENT",null,null,null,null,null,"OMB NO. 0578-00031"]
[]
[null,null,null,null,null,null,null,null,"Advancing Markets for Producers"]
[null,null,null,null,null,null,null,null,null,null,null,null,null,null,"DATE PREPARED"]
[]
[]
[null,null,null,null,null,null,null,null,null,null,null,null,null,null,"2025-12-10"]
[]
[]
["IDENTIFICATION OF REPORTING OR RECORDKEEPING REQUIREMENT",null,null,null,null,null,null,"ANNUAL BURDEN"]
[]
[null,null,null,null,null,null,null,"REPORTS",null,null,null,null,null,"RECORDS",null,null,"RESPONDENT COST",null,"Revised Annual Burden hours  "]
[]
[null,null,null,null,null,null,null,null,null,null,null,"TOTAL BURDEN HOURS",null,null,null,"TOTAL",null,null,"Previously Approved Burden Hours","Difference Due to Adjustments","Differences Due to Program Changes"]
[null,null,null,null,null,null,"FORMS NO (S)","NO. OF","NO OF","TOTAL ANNUAL","HOURS"," (Col. F x G)",null,"NO. OF ","ANNUAL ","RECORD-","COST","TOTAL"]
["SECTION OF","DESCRIPTION",null,null,null,null,"(If \"none\"","RESPONDENTS","RESPONSES","RESPONSES","PER  ","(H)",null,"RECORD-","HOURS PER","KEEPING HOURS","PER","COST"]
["REGS.",null,null,null,null,null,"so state)",null,"PER ","(Col. D x E)","RESPONSE",null,"NON-EXEMPT","KEEPERS","RECORD-","(Col. I x J)","HOUR","(Col. H x L)"]
[null,null,null,null,null,null,null,null,"RESPONDENT",null,null,"EXEMPT",null,null,"KEEPER"]
["(A)","(B)",null,null,null,null,"(C)","(D)","(E)","(F)","(G)",null,null,"(I)","(J)","(K)","(L)","(M)"]
[null,"Progress Reports",null,null,null,null,"None",125,2,{"$f":"SUM(H20*I20)","v":250},17,null,{"$f":"SUM(J20*K20)","v":4250},null,null,null,56.27,{"$f":"SUM(M20*Q20)","v":239147.5},1870,null,{"$f":"M20-S20","v":2380}]
[null,null,null,null,null,null,null,null,null,{"$f":"SUM(H21*I21)","v":0}]
[null,"Request for Advance or Reimbursement (OMB # 4040-0012)",null,null,null,null,"SF-270 ",40,1,40,1,{"$f":"K22*J22","v":40},null,null,null,null,null,null,55,null,{"$f":"L22-S22","v":-15}]
[null,"Federal Financial Report** (OMB # 4040-0014)",null,null,null,null,"SF-425/SF-425A",125,2,250,4,{"$f":"K23*J23","v":1000},null,null,null,null,null,null,220,null,{"$f":"L23-S23","v":780}]
[null,"Compliance and Environmental Worksheets*",null,null,null,null,null,75,20,1500,4,{"$f":"K24*J24","v":6000},null,null,null,null,null,null,40000,null,-34000]
[null,"*Including, but not limited to: the form AD-1026-Highly Erodible Land Conservation (HELC) and Wetland Conservation (WC) Certification,  and the form CPA-052-Environmental Evaluation Worksheet. "]
[null,"**Collection is included in Progress Reports"]
[null,"Project Summary",null,null,null,null,"None",0,null,null,null,null,0,null,null,null,null,null,5000,null,{"$f":"M27-S27","v":-5000}]
[null,"Resumes",null,null,null,null,"None",0,null,null,null,null,0,null,null,null,null,null,5000,null,{"$f":"M28-S28","v":-5000}]
[null,"Support Letters",null,null,null,null,"None",0,null,null,null,null,0,null,null,null,null,null,2500,null,{"$f":"M29-S29","v":-2500}]
[null,"Application for Federal Assistance** (OMB #4040-0020)",null,null,null,null,"SF-424",0,null,null,null,0,null,null,null,null,null,null,8000,null,{"$f":"L30-S30","v":-8000}]
[null,"Budget Information for Non-Construction** (4040-0006)",null,null,null,null,"SF-424A",0,null,null,null,0,null,null,null,null,null,null,500,null,-500]
[null,"SUBTOTAL",null,null,null,null,null,null,null,{"$f":"SUM(J20:J20)","v":250},null,{"$f":"SUM(L20:L26)","v":7040},{"$f":"SUM(M20:M21)","v":4250},null,null,{"$f":"SUM(P20:P31)","v":0},null,{"$f":"SUM(R20:R31)","v":239147.5},{"$f":"SUM(S20:S31)","v":63145},{"$f":"SUM(T20:T31)","v":0},{"$f":"SUM(U20:U31)","v":-51855}]
[null,"TOTAL OF ALL PAGES",null,null,null,null,null,null,null,{"$f":"SUM(J32)","v":250},null,{"$f":"SUM(L32)","v":7040},{"$f":"M32","v":4250},null,null,{"$f":"SUM(P32)","v":0},null,{"$f":"SUM(R32)","v":239147.5}]
["TOTAL - COLUMNS \"F\" AND \"I\" = OMB 83-I, 13b; COLUMNS \"H\" AND \"K\" = OMB 83-I, 13c",null,null,null,null,null,null,null,null,{"$f":"SUM(J33+N33)","v":250},null,null,{"$f":"SUM(M33+P33)","v":4250}]